[Event "Swedish Championship U20 2022"]
[Site "Uppsala"]
[Date "2022.07.09"]
[Round "8.4"]
[White "Wernberg, Hugo"]
[Black "Nord, Alexander"]
[Result "1-0"]
[ECO "A28"]
[WhiteElo "2316"]
[BlackElo "2200"]
[Annotator "RC"]
[PlyCount "95"]
[EventDate "2022.07.01"]
[EventType "tourn"]
[EventCountry "SWE"]
[SourceTitle "playchess.com"]
[Source "ChessBase"]
[SourceQuality "1"]
[TimeControl "40/5400+30:1800+30"]

1. c4 {[%emt 0:00:08]} e5 {[%emt 0:00:21]} 2. Nc3 {[%emt 0:00:08]} Nf6 {[%emt 0:00:22]} 3. Nf3 {[%emt 0:00:10]} Nc6 {[%emt 0:00:20]} 4. e4 {[%emt 0:00:08]} Bb4 {[%emt 0:02:11]} 5. d3 {[%emt 0:00:14]} d6 {[%emt 0:00:53]} 6. a3 {[%emt 0:00:10]} Bc5 {[%emt 0:02:31]} 7. b4 {[%emt 0:00:13]} Bd4 {[%emt 0:03:25]} 8. Nxd4 {[%emt 0:01:01]} Nxd4 {[%emt 0:00:33]} 9. Be2 {[%emt 0:02:22]} a5 {[%emt 0:15:03]} 10. b5 {[%emt 0:07:11]} c6 {[%emt 0:08:37]} 11. O-O {[%emt 0:03:11]} O-O {[%emt 0:03:39]} 12. Rb1 {[%emt 0:06:53]} Ne6 {[%emt 0:08:57]} 13. Be3 {[%emt 0:06:45]} c5 {[%emt 0:05:17]} 14. Qd2 {[%emt 0:05:19]} Nd4 {[%emt 0:05:25]} 15. h3 {[%emt 0:07:04]} Be6 {[%emt 0:06:56]} 16. f4 {[%emt 0:06:32]} Nxe2+ {[%emt 0:02:43]} 17. Nxe2 {[%emt 0:09:44]} exf4 {[%emt 0:00:57]} 18. Bxf4 {[%emt 0:00:34]} Qc7 {[%emt 0:02:45]} 19. Rbc1 {[%emt 0:08:43]} Nd7 {[%emt 0:05:06]} 20. d4 {[%emt 0:05:28]} f6 {[%emt 0:00:18]} 21. Rfd1 {[%emt 0:07:17]} Rfd8 {[%emt 0:04:54]} 22. Qe3 {[%emt 0:06:52]} Nf8 {[%emt 0:07:56]} 23. Bg3 {[%emt 0:08:59]} Bf7 {[%emt 0:01:08]} 24. Kh2 {[%emt 0:01:22]} Ng6 {[%emt 0:01:11]} 25. Nf4 {[%emt 0:01:06]} Nxf4 {[%emt 0:02:36]} 26. Bxf4 {[%emt 0:02:09]} Rac8 {[%emt 0:01:55]} 27. Qg3 {[%emt 0:01:55]} Qe7 {[%emt 0:01:28]} 28. e5 {[%emt 0:01:19]} dxe5 {[%emt 0:01:39]} 29. dxe5 {[%emt 0:00:09]} Rxd1 {[%emt 0:02:09]} 30. exf6 {[%emt 0:00:26]} Qxf6 {[%emt 0:00:19]} 31. Rxd1 {[%emt 0:00:05]} Be6 {[%emt 0:03:21]} 32. Rd6 {[%emt 0:00:49]} Qf7 {[%emt 0:00:12]} 33. a4 {[%emt 0:01:53]} Re8 {[%emt 0:00:45]} 34. Bd2 {[%emt 0:00:30]} Bxc4 {[%emt 0:00:21]} 35. Bxa5 {[%emt 0:00:09]} Bb3 {[%emt 0:00:54]} 36. Qg4 {[%emt 0:00:56]} Be6 {[%emt 0:00:21]} 37. Qg5 {[%emt 0:00:32]} Qe7 {[%emt 0:00:41]} 38. Qxc5 {[%emt 0:00:32]} Bf7 {[%emt 0:00:45]} 39. Qd4 {[%emt 0:00:18]} Qe4 {[%emt 0:00:20]} 40. Bc3 {[%emt 0:00:29]} Qxd4 {[%emt 0:00:25]} 41. Bxd4 {[%emt 0:02:13]} Be6 {[%emt 0:12:45]} 42. a5 {[%emt 0:05:35]} Kf7 {[%emt 0:04:18]} 43. a6 {[%emt 0:02:25]} bxa6 {[%emt 0:00:07]} 44. bxa6 {[%emt 0:00:20]} g5 {[%emt 0:02:58]} 45. a7 {[%emt 0:03:10]} Rc8 {[%emt 0:03:02]} 46. Rc6 {[%emt 0:03:29]} Re8 {[%emt 0:00:49]} 47. Rc7+ {[%emt 0:01:50]} Kg6 {[%emt 0:00:16]} 48. Re7 {[%emt 0:00:39]} 1-0

[Event "Swedish Championship U20 2022"]
[Site "Uppsala"]
[Date "2022.07.10"]
[Round "9.1"]
[White "Olsson, William"]
[Black "Soderstrom, Adrian"]
[Result "1-0"]
[ECO "D45"]
[WhiteElo "2284"]
[BlackElo "2292"]
[Annotator "RC"]
[PlyCount "51"]
[EventDate "2022.07.01"]
[EventType "tourn"]
[EventCountry "SWE"]
[SourceTitle "playchess.com"]
[Source "ChessBase"]
[SourceQuality "1"]
[TimeControl "40/5400+30:1800+30"]

1. c4 {[%emt 0:00:11]} e6 {[%emt 0:00:27]} 2. Nc3 {[%emt 0:00:15]} d5 {[%emt 0:00:09]} 3. d4 {[%emt 0:00:03]} c6 {[%emt 0:00:16]} 4. e3 {[%emt 0:00:25]} Nf6 {[%emt 0:00:47]} 5. Nf3 {[%emt 0:00:03]} Nbd7 {[%emt 0:00:11]} 6. Qc2 {[%emt 0:00:10]} Bd6 {[%emt 0:00:23]} 7. b3 {[%emt 0:00:08]} O-O {[%emt 0:00:29]} 8. Be2 {[%emt 0:00:24]} b6 {[%emt 0:00:29]} 9. O-O {[%emt 0:00:39]} Bb7 {[%emt 0:00:06]} 10. e4 {[%emt 0:03:16]} dxe4 {[%emt 0:05:17]} 11. Nxe4 {[%emt 0:00:09]} Nxe4 {[%emt 0:02:13]} 12. Qxe4 {[%emt 0:00:10]} Nf6 {[%emt 0:13:07]} 13. Qh4 {[%emt 0:03:52]} c5 {[%emt 0:05:07]} 14. dxc5 {[%emt 0:07:43]} Bxc5 {[%emt 0:02:04]} 15. Bb2 {[%emt 0:00:24]} h6 {[%emt 0:07:37]} 16. Rab1 {[%emt 0:11:32]} Qe7 {[%emt 0:04:30]} 17. b4 {[%emt 0:03:30]} Bd6 {[%emt 0:08:11]} 18. c5 {[%emt 0:02:05]} bxc5 {[%emt 0:15:49]} 19. bxc5 {[%emt 0:00:50]} Bxc5 {[%emt 0:00:16]} 20. Bxf6 {[%emt 0:00:12]} gxf6 {[%emt 0:00:05]} 21. Qxh6 {[%emt 0:03:25]} Be4 {[%emt 0:05:09]} 22. Rb3 {[%emt 0:01:20]} Bd5 {[%emt 0:16:41]} 23. Ng5 {[%emt 0:02:27]} fxg5 {[%emt 0:01:12]} 24. Rh3 {[%emt 0:00:03]} f5 {[%emt 0:00:56]} 25. Qh8+ {[%emt 0:00:02]} Kf7 {[%emt 0:00:06]} 26. Bh5# {[%emt 0:00:03]} 1-0

[Event "Swedish Championship U20 2022"]
[Site "Uppsala"]
[Date "2022.07.10"]
[Round "9.2"]
[White "Nord, Alexander"]
[Black "Falkevall, Axel"]
[Result "1/2-1/2"]
[ECO "E65"]
[WhiteElo "2200"]
[BlackElo "2275"]
[Annotator "RC"]
[PlyCount "103"]
[EventDate "2022.07.01"]
[EventType "tourn"]
[EventCountry "SWE"]
[SourceTitle "playchess.com"]
[Source "ChessBase"]
[SourceQuality "1"]
[TimeControl "40/5400+30:1800+30"]

1. d4 {[%emt 0:00:11]} Nf6 {[%emt 0:00:06]} 2. Nf3 {[%emt 0:00:07]} g6 {[%emt 0:00:13]} 3. g3 {[%emt 0:00:08]} Bg7 {[%emt 0:00:04]} 4. Bg2 {[%emt 0:00:06]} c5 {[%emt 0:00:12]} 5. c4 {[%emt 0:03:54]} O-O {[%emt 0:03:01]} 6. O-O {[%emt 0:00:43]} d6 {[%emt 0:01:37]} 7. Nc3 {[%emt 0:00:59]} Nc6 {[%emt 0:00:43]} 8. e3 {[%emt 0:04:49]} Rb8 {[%emt 0:20:27]} 9. b3 {[%emt 0:13:37]} Bf5 {[%emt 0:11:20]} 10. Bb2 {[%emt 0:04:57]} Qc8 {[%emt 0:04:31]} 11. Qe2 {[%emt 0:11:37]} Bh3 {[%emt 0:06:28]} 12. Rfe1 {[%emt 0:04:08]} Bxg2 {[%emt 0:00:34]} 13. Kxg2 {[%emt 0:00:04]} Nd7 {[%emt 0:07:55]} 14. d5 {[%emt 0:11:12]} Nce5 {[%emt 0:01:33]} 15. Nxe5 {[%emt 0:01:08]} Nxe5 {[%emt 0:00:28]} 16. f4 {[%emt 0:01:37]} Nd7 {[%emt 0:00:42]} 17. Nb5 {[%emt 0:01:30]} a6 {[%emt 0:01:10]} 18. Bxg7 {[%emt 0:00:11]} Kxg7 {[%emt 0:00:09]} 19. Nc3 {[%emt 0:00:18]} Re8 {[%emt 0:13:14]} 20. a4 {[%emt 0:01:20]} Nf6 {[%emt 0:01:53]} 21. e4 {[%emt 0:03:38]} e5 {[%emt 0:04:00]} 22. dxe6 {[%emt 0:04:53]} Rxe6 {[%emt 0:00:59]} 23. Qf3 {[%emt 0:05:06]} Qe8 {[%emt 0:02:46]} 24. Rad1 {[%emt 0:05:16]} h5 {[%emt 0:01:38]} 25. Re2 {[%emt 0:02:12]} Rd8 {[%emt 0:01:33]} 26. Rde1 {[%emt 0:00:32]} Rd7 {[%emt 0:01:46]} 27. h3 {[%emt 0:03:49]} Qd8 {[%emt 0:03:02]} 28. g4 {[%emt 0:01:51]} hxg4 {[%emt 0:00:28]} 29. hxg4 {[%emt 0:00:19]} Re8 {[%emt 0:01:23]} 30. Rh1 {[%emt 0:01:37]} Rh8 {[%emt 0:00:22]} 31. Ree1 {[%emt 0:00:27]} Rxh1 {[%emt 0:01:01]} 32. Rxh1 {[%emt 0:00:02]} Qa5 {[%emt 0:01:11]} 33. Qh3 {[%emt 0:01:33]} Ng8 {[%emt 0:00:14]} 34. g5 {[%emt 0:01:25]} Re7 {[%emt 0:00:24]} 35. Qd3 {[%emt 0:01:32]} Rd7 {[%emt 0:00:58]} 36. Nd5 {[%emt 0:00:38]} Rd8 {[%emt 0:01:04]} 37. Qc2 {[%emt 0:05:03]} f6 {[%emt 0:03:29]} 38. gxf6+ {[%emt 0:05:03]} Nxf6 {[%emt 0:00:05]} 39. Nxf6 {[%emt 0:00:28]} Kxf6 {[%emt 0:00:05]} 40. Qb2+ {[%emt 0:00:32]} Ke6 {[%emt 0:00:34]} 41. Qe2 {[%emt 0:08:40]} Kd7 {[%emt 0:01:09]} 42. Qe1 {[%emt 0:06:53]} Qxe1 {[%emt 0:01:34]} 43. Rxe1 {[%emt 0:00:01]} Rb8 {[%emt 0:07:41]} 44. Kg3 {[%emt 0:01:49]} b5 {[%emt 0:03:23]} 45. axb5 {[%emt 0:01:30]} axb5 {[%emt 0:00:58]} 46. cxb5 {[%emt 0:00:02]} Rxb5 {[%emt 0:01:10]} 47. Re3 {[%emt 0:00:07]} Ke6 {[%emt 0:02:37]} 48. Kg4 {[%emt 0:00:44]} Rb4 {[%emt 0:00:41]} 49. Kg5 {[%emt 0:00:52]} Kf7 {[%emt 0:01:05]} 50. Rd3 {[%emt 0:01:40]} Rxe4 {[%emt 0:00:46]} 51. Rxd6 {[%emt 0:00:07]} Re3 {[%emt 0:01:37]} 52. Rf6+ {[%emt 0:01:06]} 1/2-1/2

[Event "Swedish Championship U20 2022"]
[Site "Uppsala"]
[Date "2022.07.10"]
[Round "9.3"]
[White "Seo, Jung Hyun"]
[Black "Wernberg, Hugo"]
[Result "1/2-1/2"]
[ECO "C45"]
[WhiteElo "2102"]
[BlackElo "2316"]
[Annotator "RC"]
[PlyCount "97"]
[EventDate "2022.07.01"]
[EventType "tourn"]
[EventCountry "SWE"]
[SourceTitle "playchess.com"]
[Source "ChessBase"]
[SourceQuality "1"]
[TimeControl "40/5400+30:1800+30"]

1. e4 {[%emt 0:00:16]} e5 {[%emt 0:00:05]} 2. Nf3 {[%emt 0:00:03]} Nc6 {[%emt 0:00:07]} 3. d4 {[%emt 0:00:02]} exd4 {[%emt 0:00:07]} 4. Nxd4 {[%emt 0:00:03]} Nf6 {[%emt 0:00:07]} 5. Nxc6 {[%emt 0:00:03]} bxc6 {[%emt 0:00:07]} 6. e5 {[%emt 0:00:02]} Qe7 {[%emt 0:00:10]} 7. Qe2 {[%emt 0:00:04]} Nd5 {[%emt 0:00:09]} 8. c4 {[%emt 0:00:03]} Nb6 {[%emt 0:00:24]} 9. Nc3 {[%emt 0:00:07]} Ba6 {[%emt 0:00:45]} 10. Qe4 {[%emt 0:00:12]} g6 {[%emt 0:03:19]} 11. f4 {[%emt 0:01:18]} Bg7 {[%emt 0:01:32]} 12. Bd2 {[%emt 0:00:57]} O-O {[%emt 0:04:51]} 13. O-O-O {[%emt 0:02:43]} Rad8 {[%emt 0:08:30]} 14. h4 {[%emt 0:05:27]} d5 {[%emt 0:14:53]} 15. Qf3 {[%emt 0:14:32]} Bxc4 {[%emt 0:10:50]} 16. Kb1 {[%emt 0:14:34]} Bxf1 {[%emt 0:05:12]} 17. Rdxf1 {[%emt 0:00:20]} Nc4 {[%emt 0:03:28]} 18. Bc1 {[%emt 0:03:33]} Rb8 {[%emt 0:16:55]} 19. Rf2 {[%emt 0:03:55]} f6 {[%emt 0:04:48]} 20. h5 {[%emt 0:12:38]} fxe5 {[%emt 0:01:04]} 21. hxg6 {[%emt 0:01:02]} h6 {[%emt 0:05:14]} 22. Nxd5 {[%emt 0:16:03]} Qe6 {[%emt 0:03:37]} 23. Nc3 {[%emt 0:02:45]} exf4 {[%emt 0:01:44]} 24. Re2 {[%emt 0:03:16]} Qf6 {[%emt 0:02:15]} 25. Ka1 {[%emt 0:03:12]} Qxg6 {[%emt 0:02:20]} 26. Qe4 {[%emt 0:02:58]} Qxe4 {[%emt 0:01:21]} 27. Rxe4 {[%emt 0:00:03]} Ne3 {[%emt 0:02:48]} 28. Bxe3 {[%emt 0:09:33]} fxe3 {[%emt 0:00:08]} 29. Rxe3 {[%emt 0:00:32]} Rf2 {[%emt 0:00:31]} 30. Nd1 {[%emt 0:00:00]} Rxg2 {[%emt 0:01:40]} 31. Re7 {[%emt 0:01:06]} h5 {[%emt 0:04:17]} 32. Rxh5 {[%emt 0:01:52]} Rg1 {[%emt 0:01:09]} 33. Rd7 {[%emt 0:00:07]} Bxb2+ {[%emt 0:00:55]} 34. Kb1 {[%emt 0:00:05]} Bf6+ {[%emt 0:01:16]} 35. Kc2 {[%emt 0:00:28]} Rg2+ {[%emt 0:00:49]} 36. Rd2 {[%emt 0:00:05]} Rg3 {[%emt 0:00:18]} 37. Ra5 {[%emt 0:00:53]} Rb7 {[%emt 0:00:41]} 38. Rf5 {[%emt 0:01:18]} Bg7 {[%emt 0:00:22]} 39. Rd3 {[%emt 0:01:58]} Rg2+ {[%emt 0:00:17]} 40. Rd2 {[%emt 0:00:08]} Rg4 {[%emt 0:00:18]} 41. Rd8+ {[%emt 0:31:23]} Kh7 {[%emt 0:30:20]} 42. Rd7 {[%emt 0:00:43]} Rbb4 {[%emt 0:00:00]} 43. Rff7 {[%emt 0:00:00]} Rbc4+ {[%emt 0:00:00]} 44. Kd3 {[%emt 0:00:00]} Rgd4+ {[%emt 0:00:00]} 45. Rxd4 {[%emt 0:00:00]} Rxd4+ {[%emt 0:00:00]} 46. Kc2 {[%emt 0:00:00]} Rc4+ {[%emt 0:00:00]} 47. Kd3 {[%emt 0:04:01]} Rc1 {[%emt 0:00:00]} 48. Ne3 {[%emt 0:00:00]} Kg6 {[%emt 0:00:00]} 49. Rxc7 {[%emt 0:00:00]} 1/2-1/2

[Event "Swedish Championship U20 2022"]
[Site "Uppsala"]
[Date "2022.07.10"]
[Round "9.4"]
[White "Rasti, Arvin"]
[Black "Torngren, Gustav"]
[Result "0-1"]
[ECO "B12"]
[WhiteElo "2136"]
[BlackElo "2273"]
[Annotator "RC"]
[PlyCount "96"]
[EventDate "2022.07.01"]
[EventType "tourn"]
[EventCountry "SWE"]
[SourceTitle "playchess.com"]
[Source "ChessBase"]
[SourceQuality "1"]
[TimeControl "40/5400+30:1800+30"]

1. e4 {[%emt 0:02:31]} c6 {[%emt 0:01:25]} 2. d4 {[%emt 0:00:25]} d5 {[%emt 0:00:09]} 3. e5 {[%emt 0:00:15]} Bf5 {[%emt 0:00:12]} 4. h4 {[%emt 0:00:20]} Qb6 {[%emt 0:03:42]} 5. Bd3 {[%emt 0:07:29]} Bxd3 {[%emt 0:01:21]} 6. Qxd3 {[%emt 0:00:08]} e6 {[%emt 0:00:15]} 7. Ne2 {[%emt 0:04:28]} c5 {[%emt 0:01:10]} 8. c3 {[%emt 0:01:14]} Nc6 {[%emt 0:00:15]} 9. a3 {[%emt 0:01:37]} c4 {[%emt 0:13:02]} 10. Qc2 {[%emt 0:00:51]} Nge7 {[%emt 0:00:37]} 11. h5 {[%emt 0:03:54]} h6 {[%emt 0:00:10]} 12. Nd2 {[%emt 0:00:36]} Na5 {[%emt 0:03:28]} 13. Rb1 {[%emt 0:04:49]} Nb3 {[%emt 0:04:26]} 14. Nf3 {[%emt 0:04:03]} Qc6 {[%emt 0:09:10]} 15. Nh4 {[%emt 0:04:09]} Qa4 {[%emt 0:10:17]} 16. Qd1 {[%emt 0:06:35]} Nc8 {[%emt 0:05:11]} 17. f4 {[%emt 0:02:52]} Be7 {[%emt 0:00:53]} 18. Nf3 {[%emt 0:02:11]} Nb6 {[%emt 0:00:30]} 19. Be3 {[%emt 0:01:13]} O-O-O {[%emt 0:01:25]} 20. g4 {[%emt 0:04:34]} Rdf8 {[%emt 0:08:39]} 21. Ng3 {[%emt 0:05:04]} Kb8 {[%emt 0:03:15]} 22. f5 {[%emt 0:04:31]} Ka8 {[%emt 0:00:52]} 23. O-O {[%emt 0:02:09]} Qd7 {[%emt 0:07:32]} 24. Qc2 {[%emt 0:02:23]} Bd8 {[%emt 0:02:10]} 25. Rbe1 {[%emt 0:01:03]} a6 {[%emt 0:02:00]} 26. Kg2 {[%emt 0:01:20]} Rhg8 {[%emt 0:04:01]} 27. Ne2 {[%emt 0:04:43]} exf5 {[%emt 0:03:50]} 28. Qxf5 {[%emt 0:00:17]} Qc6 {[%emt 0:00:28]} 29. Nf4 {[%emt 0:03:05]} Nc8 {[%emt 0:02:09]} 30. e6 {[%emt 0:06:07]} Ne7 {[%emt 0:01:00]} 31. Qc2 {[%emt 0:00:15]} Bc7 {[%emt 0:01:50]} 32. exf7 {[%emt 0:03:18]} Rxf7 {[%emt 0:00:03]} 33. Ng1 {[%emt 0:03:35]} Qd7 {[%emt 0:01:25]} 34. Qe2 {[%emt 0:01:34]} g6 {[%emt 0:00:52]} 35. hxg6 {[%emt 0:02:06]} Nxg6 {[%emt 0:00:08]} 36. Nxg6 {[%emt 0:00:29]} Rxg6 {[%emt 0:00:02]} 37. Rxf7 {[%emt 0:01:08]} Rxg4+ {[%emt 0:01:32]} 38. Qxg4 {[%emt 0:00:47]} Qxg4+ {[%emt 0:00:02]} 39. Kf1 {[%emt 0:00:10]} Bg3 {[%emt 0:01:01]} 40. Re2 {[%emt 0:00:55]} h5 {[%emt 0:00:18]} 41. Bf2 {[%emt 0:37:20]} h4 {[%emt 0:32:36]} 42. Bxg3 {[%emt 0:01:24]} Qxg3 {[%emt 0:00:26]} 43. Rf3 {[%emt 0:01:10]} Qg5 {[%emt 0:01:24]} 44. Rf8+ {[%emt 0:00:00]} Ka7 {[%emt 0:00:00]} 45. Nf3 {[%emt 0:00:00]} Qg7 {[%emt 0:00:00]} 46. Ree8 {[%emt 0:00:00]} h3 {[%emt 0:00:00]} 47. Rg8 {[%emt 0:00:00]} Qh7 {[%emt 0:00:00]} 48. Rh8 {[%emt 0:00:00]} Qb1+ {[%emt 0:00:00]} 0-1

[Event "Swedish Championship U20 2022"]
[Site "Uppsala"]
[Date "2022.07.10"]
[Round "9.5"]
[White "Ostlund, Joar"]
[Black "Grahn, Vidar"]
[Result "1-0"]
[ECO "D52"]
[WhiteElo "2222"]
[BlackElo "2003"]
[Annotator "RC"]
[PlyCount "67"]
[EventDate "2022.07.01"]
[EventType "tourn"]
[EventCountry "SWE"]
[SourceTitle "playchess.com"]
[Source "ChessBase"]
[SourceQuality "1"]
[TimeControl "40/5400+30:1800+30"]

1. d4 {[%emt 0:00:11]} d5 {[%emt 0:00:04]} 2. Nf3 {[%emt 0:00:31]} Nf6 {[%emt 0:00:04]} 3. c4 {[%emt 0:00:04]} c6 {[%emt 0:00:04]} 4. Nc3 {[%emt 0:00:06]} e6 {[%emt 0:00:07]} 5. Bg5 {[%emt 0:00:27]} Nbd7 {[%emt 0:00:06]} 6. e3 {[%emt 0:00:08]} Qa5 {[%emt 0:00:11]} 7. Nd2 {[%emt 0:00:45]} dxc4 {[%emt 0:00:17]} 8. Bxf6 {[%emt 0:00:22]} Nxf6 {[%emt 0:00:05]} 9. Nxc4 {[%emt 0:00:16]} Qc7 {[%emt 0:00:11]} 10. Be2 {[%emt 0:01:37]} Bd6 {[%emt 0:01:12]} 11. Rc1 {[%emt 0:11:11]} O-O {[%emt 0:06:00]} 12. Bf3 {[%emt 0:10:20]} Re8 {[%emt 0:08:06]} 13. h3 {[%emt 0:04:01]} e5 {[%emt 0:05:55]} 14. d5 {[%emt 0:02:54]} cxd5 {[%emt 0:04:43]} 15. Bxd5 {[%emt 0:14:27]} Bb4 {[%emt 0:07:06]} 16. O-O {[%emt 0:35:58]} Rd8 {[%emt 0:21:22]} 17. e4 {[%emt 0:02:01]} Bxc3 {[%emt 0:02:48]} 18. Rxc3 {[%emt 0:00:06]} Nxe4 {[%emt 0:02:12]} 19. Rd3 {[%emt 0:00:34]} Bf5 {[%emt 0:02:22]} 20. Qf3 {[%emt 0:03:29]} Rxd5 {[%emt 0:04:54]} 21. Rxd5 {[%emt 0:00:05]} Qxc4 {[%emt 0:00:12]} 22. Rfd1 {[%emt 0:00:13]} g6 {[%emt 0:00:15]} 23. Rxe5 {[%emt 0:02:10]} Nc5 {[%emt 0:04:00]} 24. Qe3 {[%emt 0:02:01]} Nd3 {[%emt 0:02:08]} 25. Rxf5 {[%emt 0:01:09]} gxf5 {[%emt 0:04:51]} 26. Rxd3 {[%emt 0:00:06]} Qc6 {[%emt 0:00:52]} 27. Qe5 {[%emt 0:00:46]} Qc1+ {[%emt 0:02:37]} 28. Kh2 {[%emt 0:00:15]} f4 {[%emt 0:00:53]} 29. Qg5+ {[%emt 0:00:22]} Kf8 {[%emt 0:00:20]} 30. Qf6 {[%emt 0:00:33]} Qc4 {[%emt 0:01:19]} 31. Rd4 {[%emt 0:01:14]} Qe6 {[%emt 0:01:33]} 32. Qh8+ {[%emt 0:00:18]} Ke7 {[%emt 0:00:03]} 33. Qxa8 {[%emt 0:00:22]} f3 {[%emt 0:00:17]} 34. Qd8# {[%emt 0:00:07]} 1-0